{"text_format":"1","workbook":"xlsx","n_sheets":3,"sheets":["Projeções","Análise de sensibilidade","Análise de break even"],"not_rendered":{"charts":0,"images":0,"macros":1,"external_links":0,"defined_names":13,"comments":0,"pivot_tables":0},"unopened":[],"bounds":{"document_bytes":16777216,"sheet_cells":100000,"rows_first":2000,"rows_last":500,"rows_between":2000,"halvings":0,"cell_chars":16384,"cell_head_chars":4096},"cells_cut":0,"cells_raw":0,"read":"whole","date_system":"1900"}

{"sheet":"Projeções","index":0,"n_rows":9,"n_cols":5,"rows_kept":9,"cut":false,"hidden":false,"merged":[]}
[null,"Parâmetros para análise de sensibilidade"]
[]
[null,"Variável","Pessimista","Esperada","Otimista"]
[null,"Tamanho de mercado",5000,10000,20000]
[null,"Participação no mercado",0.2,0.3,0.5]
[null,"Preço",1.9,2,2.2000000000000002]
[null,"Custo variável por unidade",1.2,1,0.8]
[null,"Custo fixo",1891,1791,1741]
[null,"Investimento",1900,1500,1000]

{"sheet":"Análise de sensibilidade","index":1,"n_rows":35,"n_cols":10,"rows_kept":35,"cut":false,"hidden":false,"merged":[[3,6,4,6],[3,7,3,9]]}
[]
[null,"Fluxo de caixa",null,null,null,null,"ANÁLISE DE SENSIBILIDADE"]
[]
[null,"Item","Ano 1","Anos 2 a 6",null,null,"Variável","Projeção"]
[null,"Receitas",null,{"$f":"mercado*participacao*preço","v":6000},null,null,null,"Pessimista","Esperada","Otimista"]
[null,"Custos variáveis",null,{"$f":"CVM*mercado*participacao","v":3000},null,null,"Tamanho de mercado",-1801.8950881269066,1516.73845890438,8154.0055529669535]
[null,"Custo fixos",null,{"$f":"CF","v":1791},null,null,"Participação no mercado",-695.6839057831445,1516.73845890438,5941.5831882794291]
[null,"Depreciação",null,{"$f":"Investimento/anos","v":300},null,null,"Preço",853.01174949812321,1516.73845890438,2844.1918777168967]
[null,"Lucro antes do imposto",null,{"$f":"D5-SUM(D6:D8)","v":909},null,null,"Custo variável por unidade",189.28504009186531,1516.73845890438,2844.1918777168949]
[null,"Imposto (T=0,34)",null,{"$f":"tx_imp*D9","v":309.06},null,null,"Custo fixo",1295.4962224356277,1516.73845890438,1627.3595771387563]
[null,"Lucro líquido",null,{"$f":"D9-D10","v":599.94000000000005},null,null,"Investimento",1207.9170775702901,1516.73845890438,1902.7651855719923]
[null,"+depreciação",{"$f":"C8","v":0},{"$f":"D8","v":300}]
[null,"-investimento",{"$f":"Investimento","v":1500}]
[null,"Fluxo de caixa",{"$f":"C11+C12-C13","v":-1500},{"$f":"D11+D12-D13","v":899.94}]
[]
[null,"VPL (ano 1)",{"$f":"C14+PV(r_,5,-D14)","v":1516.73845890438}]
[]
[]
[]
[]
[null,"Parâmetros para análise de sensibilidade"]
[]
[null,"Variável","Projecao","Valor"]
[null,"Tamanho de mercado","Esperada",{"$f":"VLOOKUP(B24,projeções,MATCH('Análise de sensibilidade'!C24,Projeções!$C$3:$E$3,0)+1,)","v":10000}]
[null,"Participação no mercado","Esperada",{"$f":"VLOOKUP(B25,projeções,MATCH('Análise de sensibilidade'!C25,Projeções!$C$3:$E$3,0)+1,)","v":0.3}]
[null,"Preço","Esperada",{"$f":"VLOOKUP(B26,projeções,MATCH('Análise de sensibilidade'!C26,Projeções!$C$3:$E$3,0)+1,)","v":2}]
[null,"Custo variável por unidade","Esperada",{"$f":"VLOOKUP(B27,projeções,MATCH('Análise de sensibilidade'!C27,Projeções!$C$3:$E$3,0)+1,)","v":1}]
[null,"Custo fixo","Esperada",{"$f":"VLOOKUP(B28,projeções,MATCH('Análise de sensibilidade'!C28,Projeções!$C$3:$E$3,0)+1,)","v":1791}]
[null,"Investimento","Esperada",{"$f":"VLOOKUP(B29,projeções,MATCH('Análise de sensibilidade'!C29,Projeções!$C$3:$E$3,0)+1,)","v":1500}]
[]
[null,"Alíquota de imposto",null,0.34]
[null,"taxa de desconto",null,0.15]
[null,"anos",null,5]
[null,"Custo anual equivalente do investimento"]
[null,"CAE =",{"$f":"PMT(r_,5,-Investimento)","v":447.47332869229251}]

{"sheet":"Análise de break even","index":2,"n_rows":9,"n_cols":3,"rows_kept":9,"cut":false,"hidden":false,"merged":[]}
[]
[null,"Break even contábil"]
[]
[null,"q*",{"$f":"(CF+depreciação)/(preço-CVM)","v":2091}]
[]
[]
[null,"Break even financeiro"]
[]
[null,"q*",{"$f":"CEILING((cae+CF*(1-tx_imp)-depreciação*tx_imp)/((preço-CVM)*(1-tx_imp)),1)","v":2315}]